Workbook

Sheet Foglio1
A1: Data | B1: Codice | C1: Regione | D1: Ricoverati | E1: Terap. Intens. | F1: Ospedalizzati | G1: Quarantena | H1: Positivi | I1: + Positivi | J1: Nuovi | K1: Guariti | L1: Deceduti | M1: Totale | N1: Tamponi | Q1: x 2 | S1: + Positivi | T1: + Nuovi | U1: + Guariti | V1: + Deceduti | W1: + Totali | X1: + Tamponi | Y1: % Positivi | Z1: % Guariti | AA1: % Deceduti | AB1: P. Stimati
A2: 2020-02-24T18:00:00 | B2: 1 | C2: Piemonte | D2: 2 | E2: 0 | F2: 2 | G2: 1 | H2: 3 | J2: 3 | K2: 0 | L2: 0 | M2: 3 | N2: 141 | O2: =M2 -> 3 | Q2: =M2 -> 3 | Y2: =IF(M2=0,0,H2/M2) -> 1 | Z2: =IF(M2=0,0,K2/M2) -> 0 | AA2: =IF(M2=0,0,L2/M2) -> 0 | AB2: =L2*100/B$1011 -> 0
A3: 2020-02-25T18:00:00 | B3: 1 | C3: Piemonte | D3: 2 | E3: 0 | F3: 2 | G3: 1 | H3: 3 | J3: 0 | K3: 0 | L3: 0 | M3: 3 | N3: 141 | O3: =IF(P3="x2",M3,O2) -> 3 | P3: =IF(M3>O2*2,"x2",O2) -> 3 | Q3: =IF(P3="x2",M3,"") ->  | S3: =IF(H3-H2=0,"",H3-H2) ->  | T3: =IF(J3-J2=0,"",J3-J2) -> -3 | U3: =IF(K3-K2=0,"",K3-K2) ->  | V3: =IF(L3-L2=0,"",L3-L2) ->  | W3: =IF(M3-M2=0,"",M3-M2) ->  | X3: =IF(N3-N2=0,"",N3-N2) ->  | Y3: 1 | Z3: 0 | AA3: 0 | AB3: 0
A4: 2020-02-26T18:00:00 | B4: 1 | C4: Piemonte | D4: 2 | E4: 0 | F4: 2 | G4: 1 | H4: 3 | J4: 0 | K4: 0 | L4: 0 | M4: 3 | N4: 156 | O4: 3 | P4: 3 | X4: 15 | Y4: 1 | Z4: 0 | AA4: 0 | AB4: 0
A5: 2020-02-27T18:00:00 | B5: 1 | C5: Piemonte | D5: 2 | E5: 0 | F5: 2 | G5: 0 | H5: 2 | J5: -1 | K5: 0 | L5: 0 | M5: 2 | N5: 156 | O5: 3 | P5: 3 | S5: -1 | T5: -1 | W5: -1 | Y5: 1 | Z5: 0 | AA5: 0 | AB5: 0
A6: 2020-02-28T18:00:00 | B6: 1 | C6: Piemonte | D6: 7 | E6: 0 | F6: 7 | G6: 4 | H6: 11 | J6: 9 | K6: 0 | L6: 0 | M6: 11 | N6: 227 | O6: 11 | P6: x2 | Q6: 11 | S6: 9 | T6: 10 | W6: 9 | X6: 71 | Y6: 1 | Z6: 0 | AA6: 0 | AB6: 0
A7: 2020-02-29T17:00:00 | B7: 1 | C7: Piemonte | D7: 7 | E7: 0 | F7: 7 | G7: 4 | H7: 11 | J7: 0 | K7: 0 | L7: 0 | M7: 11 | N7: 308 | O7: 11 | P7: 11 | T7: -9 | X7: 81 | Y7: 1 | Z7: 0 | AA7: 0 | AB7: 0
A8: 2020-03-01T17:00:00 | B8: 1 | C8: Piemonte | D8: 11 | E8: 2 | F8: 13 | G8: 36 | H8: 49 | J8: 38 | K8: 0 | L8: 0 | M8: 49 | N8: 362 | O8: 49 | P8: x2 | Q8: 49 | S8: 38 | T8: 38 | W8: 38 | X8: 54 | Y8: 1 | Z8: 0 | AA8: 0 | AB8: 0
A9: 2020-03-02T18:00:00 | B9: 1 | C9: Piemonte | D9: 12 | E9: 2 | F9: 14 | G9: 37 | H9: 51 | J9: 2 | K9: 0 | L9: 0 | M9: 51 | N9: 434 | O9: 49 | P9: 49 | S9: 2 | T9: -36 | W9: 2 | X9: 72 | Y9: 1 | Z9: 0 | AA9: 0 | AB9: 0
A10: 2020-03-03T18:00:00 | B10: 1 | C10: Piemonte | D10: 13 | E10: 3 | F10: 16 | G10: 40 | H10: 56 | J10: 5 | K10: 0 | L10: 0 | M10: 56 | N10: 458 | O10: 49 | P10: 49 | S10: 5 | T10: 3 | W10: 5 | X10: 24 | Y10: 1 | Z10: 0 | AA10: 0 | AB10: 0
A11: 2020-03-04T17:00:00 | B11: 1 | C11: Piemonte | D11: 26 | E11: 13 | F11: 39 | G11: 43 | H11: 82 | J11: 26 | K11: 0 | L11: 0 | M11: 82 | N11: 543 | O11: 49 | P11: 49 | S11: 26 | T11: 21 | W11: 26 | X11: 85 | Y11: 1 | Z11: 0 | AA11: 0 | AB11: 0
A12: 2020-03-05T17:00:00 | B12: 1 | C12: Piemonte | D12: 43 | E12: 17 | F12: 60 | G12: 46 | H12: 106 | J12: 24 | K12: 0 | L12: 2 | M12: 108 | N12: 543 | O12: 108 | P12: x2 | Q12: 108 | S12: 24 | T12: -2 | V12: 2 | W12: 26 | Y12: 0.9814814815 | Z12: 0 | AA12: 0.01851851852 | AB12: 70.67137809
A13: 2020-03-06T17:00:00 | B13: 1 | C13: Piemonte | D13: 57 | E13: 30 | F13: 87 | G13: 52 | H13: 139 | J13: 33 | K13: 0 | L13: 4 | M13: 143 | N13: 793 | O13: 108 | P13: 108 | S13: 33 | T13: 9 | V13: 2 | W13: 35 | X13: 250 | Y13: 0.972027972 | Z13: 0 | AA13: 0.02797202797 | AB13: 141.3427562
A14: 2020-03-07T18:00:00 | B14: 1 | C14: Piemonte | D14: 110 | E14: 38 | F14: 148 | G14: 54 | H14: 202 | J14: 63 | K14: 0 | L14: 5 | M14: 207 | N14: 1046 | O14: 108 | P14: 108 | S14: 63 | T14: 30 | V14: 1 | W14: 64 | X14: 253 | Y14: 0.9758454106 | Z14: 0 | AA14: 0.02415458937 | AB14: 176.6784452
A15: 2020-03-08T18:00:00 | B15: 1 | C15: Piemonte | D15: 245 | E15: 45 | F15: 290 | G15: 65 | H15: 355 | J15: 153 | K15: 0 | L15: 5 | M15: 360 | N15: 1636 | O15: 360 | P15: x2 | Q15: 360 | S15: 153 | T15: 90 | W15: 153 | X15: 590 | Y15: 0.9861111111 | Z15: 0 | AA15: 0.01388888889 | AB15: 176.6784452
A16: 2020-03-09T18:00:00 | B16: 1 | C16: Piemonte | D16: 222 | E16: 50 | F16: 272 | G16: 65 | H16: 337 | J16: -18 | K16: 0 | L16: 13 | M16: 350 | N16: 1681 | O16: 360 | P16: 360 | S16: -18 | T16: -171 | V16: 8 | W16: -10 | X16: 45 | Y16: 0.9628571429 | Z16: 0 | AA16: 0.03714285714 | AB16: 459.3639576
A17: 2020-03-10T18:00:00 | B17: 1 | C17: Piemonte | D17: 306 | E17: 66 | F17: 372 | G17: 64 | H17: 436 | J17: 99 | K17: 0 | L17: 17 | M17: 453 | N17: 2374 | O17: 360 | P17: 360 | S17: 99 | T17: 117 | V17: 4 | W17: 103 | X17: 693 | Y17: 0.9624724062 | Z17: 0 | AA17: 0.03752759382 | AB17: 600.7067138
A18: 2020-03-11T17:00:00 | B18: 1 | C18: Piemonte | D18: 319 | E18: 75 | F18: 394 | G18: 86 | H18: 480 | J18: 44 | K18: 0 | L18: 21 | M18: 501 | N18: 2431 | O18: 360 | P18: 360 | S18: 44 | T18: -55 | V18: 4 | W18: 48 | X18: 57 | Y18: 0.9580838323 | Z18: 0 | AA18: 0.04191616766 | AB18: 742.04947
A19: 2020-03-12T17:00:00 | B19: 1 | C19: Piemonte | D19: 368 | E19: 97 | F19: 465 | G19: 89 | H19: 554 | J19: 74 | K19: 0 | L19: 26 | M19: 580 | N19: 2879 | O19: 360 | P19: 360 | S19: 74 | T19: 30 | V19: 5 | W19: 79 | X19: 448 | Y19: 0.9551724138 | Z19: 0 | AA19: 0.04482758621 | AB19: 918.7279152
A20: 2020-03-13T17:00:00 | B20: 1 | C20: Piemonte | D20: 556 | E20: 135 | F20: 691 | G20: 103 | H20: 794 | J20: 240 | K20: 0 | L20: 46 | M20: 840 | N20: 3105 | O20: 840 | P20: x2 | Q20: 840 | S20: 240 | T20: 166 | V20: 20 | W20: 260 | X20: 226 | Y20: 0.9452380952 | Z20: 0 | AA20: 0.05476190476 | AB20: 1625.441696
A21: 2020-03-14T17:00:00 | B21: 1 | C21: Piemonte | D21: 538 | E21: 150 | F21: 688 | G21: 126 | H21: 814 | J21: 20 | K21: 0 | L21: 59 | M21: 873 | N21: 3680 | O21: 840 | P21: 840 | S21: 20 | T21: -220 | V21: 13 | W21: 33 | X21: 575 | Y21: 0.932416953 | Z21: 0 | AA21: 0.06758304696 | AB21: 2084.805654
A22: 2020-03-15T17:00:00 | B22: 1 | C22: Piemonte | D22: 726 | E22: 171 | F22: 897 | G22: 133 | H22: 1030 | J22: 216 | K22: 0 | L22: 81 | M22: 1111 | N22: 4375 | O22: 840 | P22: 840 | S22: 216 | T22: 196 | V22: 22 | W22: 238 | X22: 695 | Y22: 0.9270927093 | Z22: 0 | AA22: 0.07290729073 | AB22: 2862.190813
A23: 2020-03-16T17:00:00 | B23: 1 | C23: Piemonte | D23: 1045 | E23: 186 | F23: 1231 | G23: 174 | H23: 1405 | J23: 375 | K23: 0 | L23: 111 | M23: 1516 | N23: 5588 | O23: 840 | P23: 840 | S23: 375 | T23: 159 | V23: 30 | W23: 405 | X23: 1213 | Y23: 0.9267810026 | Z23: 0 | AA23: 0.07321899736 | AB23: 3922.261484
A24: 2020-03-17T17:00:00 | B24: 1 | C24: Piemonte | D24: 1378 | E24: 206 | F24: 1584 | G24: 180 | H24: 1764 | J24: 359 | K24: 0 | L24: 133 | M24: 1897 | N24: 6543 | O24: 1897 | P24: x2 | Q24: 1897 | S24: 359 | T24: -16 | V24: 22 | W24: 381 | X24: 955 | Y24: 0.9298892989 | Z24: 0 | AA24: 0.07011070111 | AB24: 4699.646643
A25: 2020-03-18T17:00:00 | B25: 1 | C25: Piemonte | D25: 1780 | E25: 227 | F25: 2007 | G25: 180 | H25: 2187 | J25: 423 | K25: 0 | L25: 154 | M25: 2341 | N25: 7516 | O25: 1897 | P25: 1897 | S25: 423 | T25: 64 | V25: 21 | W25: 444 | X25: 973 | Y25: 0.9342161469 | Z25: 0 | AA25: 0.06578385305 | AB25: 5441.696113
A26: 2020-03-19T17:00:00 | B26: 1 | C26: Piemonte | D26: 2279 | E26: 257 | F26: 2536 | G26: 218 | H26: 2754 | J26: 567 | K26: 3 | L26: 175 | M26: 2932 | N26: 8853 | O26: 1897 | P26: 1897 | S26: 567 | T26: 144 | U26: 3 | V26: 21 | W26: 591 | X26: 1337 | Y26: 0.9392905866 | Z26: 0.00102319236 | AA26: 0.05968622101 | AB26: 6183.745583
A27: 2020-03-20T17:00:00 | B27: 1 | C27: Piemonte | D27: 1541 | E27: 280 | F27: 1821 | G27: 1423 | H27: 3244 | J27: 490 | K27: 8 | L27: 209 | M27: 3461 | N27: 9975 | O27: 1897 | P27: 1897 | S27: 490 | T27: -77 | U27: 5 | V27: 34 | W27: 529 | X27: =IF(N27-N26=0,"",N27-N26) -> 1122 | Y27: 0.937301358 | Z27: 0.002311470673 | AA27: 0.06038717134 | AB27: 7385.159011
A28: 2020-03-21T17:00:00 | B28: 1 | C28: Piemonte | D28: 1976 | E28: 301 | F28: 2277 | G28: 1229 | H28: 3506 | J28: 262 | K28: 8 | L28: 238 | M28: 3752 | N28: 10701 | O28: 1897 | P28: 1897 | S28: 262 | T28: -228 | V28: 29 | W28: =IF(M28-M27=0,"",M28-M27) -> 291 | X28: 726 | Y28: 0.934434968 | Z28: 0.002132196162 | AA28: 0.06343283582 | AB28: 8409.893993
A29: 2020-03-22T17:00:00 | B29: 1 | C29: Piemonte | D29: 2118 | E29: 308 | F29: 2426 | G29: 1701 | H29: 4127 | J29: 621 | K29: 10 | L29: 283 | M29: 4420 | N29: 12701 | O29: 4420 | P29: x2 | Q29: 4420 | S29: 621 | T29: 359 | U29: 2 | V29: 45 | W29: 668 | X29: 2000 | Y29: 0.9337104072 | Z29: 0.002262443439 | AA29: 0.06402714932 | AB29: 10000
A30: 2020-03-23T17:00:00 | B30: 1 | C30: Piemonte | D30: 2194 | E30: 343 | F30: 2537 | G30: 1992 | H30: 4529 | J30: 402 | K30: 17 | L30: 315 | M30: 4861 | N30: 13560 | O30: 4420 | P30: 4420 | S30: 402 | T30: -219 | U30: 7 | V30: 32 | W30: 441 | X30: 859 | Y30: 0.931701296 | Z30: 0.003497222794 | AA30: 0.06480148118 | AB30: 11130.74205
A31: 2020-03-24T17:00:00 | B31: 1 | C31: Piemonte | D31: 2404 | E31: 360 | F31: 2764 | G31: 2360 | H31: 5124 | J31: 595 | K31: 17 | L31: 374 | M31: 5515 | N31: 15469 | O31: 4420 | P31: 4420 | S31: 595 | T31: 193 | V31: 59 | W31: 654 | X31: 1909 | Y31: 0.9291024479 | Z31: 0.003082502267 | AA31: 0.06781504986 | AB31: 13215.5477
A32: 2020-03-25T17:00:00 | B32: 1 | C32: Piemonte | D32: 2544 | E32: 381 | F32: 2925 | G32: 2631 | H32: 5556 | J32: 432 | K32: 19 | L32: 449 | M32: 6024 | N32: 16655 | O32: 4420 | P32: 4420 | S32: 432 | T32: -163 | U32: 2 | V32: 75 | W32: 509 | X32: 1186 | Y32: 0.922310757 | Z32: 0.003154050465 | AA32: 0.07453519256 | AB32: 15865.72438
A33: 2020-03-26T17:00:00 | B33: 1 | C33: Piemonte | D33: 2633 | E33: 408 | F33: 3041 | G33: 2909 | H33: 5950 | J33: 394 | K33: 135 | L33: 449 | M33: 6534 | N33: 18054 | O33: 4420 | P33: 4420 | S33: 394 | T33: -38 | U33: 116 | W33: 510 | X33: =IF(N33-N32=0,"",N33-N32) -> 1399 | Y33: 0.9106213652 | Z33: 0.02066115702 | AA33: 0.06871747781 | AB33: 15865.72438
A34: 2020-03-27T17:00:00 | B34: 1 | C34: Piemonte | D34: 2852 | E34: 431 | F34: 3283 | G34: 3064 | H34: 6347 | I34: 397 | J34: 558 | K34: 176 | L34: 569 | M34: 7092 | N34: 19705 | O34: 4420 | P34: =IF(M34>O33*2,"x2",O33) -> 4420 | Q34: =IF(P34="x2",M34,"") ->  | S34: =IF(H34-H33=0,"",H34-H33) -> 397 | T34: =IF(J34-J33=0,"",J34-J33) -> 164 | U34: 41 | V34: 120 | W34: 558 | X34: 1651 | Y34: 0.8949520587 | Z34: 0.02481669487 | AA34: 0.08023124647 | AB34: 20106.00707
A35: 2020-03-28T17:00:00 | B35: 1 | C35: Piemonte | D35: 3094 | E35: 439 | F35: 3533 | G35: 3318 | H35: 6851 | I35: 504 | J35: 579 | K35: 203 | L35: 617 | M35: 7671 | N35: 21511 | O35: =IF(P35="x2",M35,O34) -> 4420 | P35: 4420 | S35: 504 | T35: 21 | U35: 27 | V35: 48 | W35: 579 | X35: 1806 | Y35: 0.8931038978 | Z35: 0.02646330335 | AA35: 0.08043279885 | AB35: 21802.12014
A36: 2020-03-29T17:00:00 | B36: 1 | C36: Piemonte | D36: 2985 | E36: 443 | F36: 3428 | G36: 3840 | H36: 7268 | I36: 417 | J36: 535 | K36: 254 | L36: 684 | M36: 8206 | N36: 24058 | O36: 4420 | P36: 4420 | S36: 417 | T36: -44 | U36: 51 | V36: 67 | W36: 535 | X36: 2547 | Y36: 0.8856933951 | Z36: 0.03095296125 | AA36: 0.08335364368 | AB36: 24169.61131
A37: 2020-03-30T17:00:00 | B37: 1 | C37: Piemonte | D37: 2985 | E37: 452 | F37: 3437 | G37: 4218 | H37: 7655 | I37: 387 | J37: 506 | K37: 308 | L37: 749 | M37: 8712 | N37: 25478 | O37: 4420 | P37: 4420 | S37: 387 | T37: -29 | U37: 54 | V37: 65 | W37: 506 | X37: 1420 | Y37: 0.8786730946 | Z37: 0.03535353535 | AA37: 0.08597337006 | AB37: 26466.4311
A38: 2020-03-31T17:00:00 | B38: 1 | C38: Piemonte | D38: 3174 | E38: 452 | F38: 3626 | G38: 4456 | H38: 8082 | I38: 427 | J38: 589 | K38: 365 | L38: 854 | M38: 9301 | N38: 27658 | O38: 9301 | P38: x2 | Q38: 9301 | S38: 427 | T38: 83 | U38: 57 | V38: 105 | W38: 589 | X38: 2180 | Y38: 0.8689388238 | Z38: 0.03924309214 | AA38: 0.09181808408 | AB38: 30176.67845
A39: 2020-04-01T17:00:00 | B39: 1 | C39: Piemonte | D39: 3146 | E39: 453 | F39: 3599 | G39: 4871 | H39: 8470 | I39: 388 | J39: 494 | K39: 439 | L39: 886 | M39: 9795 | N39: 30060 | O39: 9301 | P39: 9301 | S39: 388 | T39: -95 | U39: 74 | V39: 32 | W39: 494 | X39: =IF(N39-N38=0,"",N39-N38) -> 2402 | Y39: =IF(M39=0,0,H39/M39) -> 0.8647269015 | Z39: =IF(M39=0,0,K39/M39) -> 0.04481878509 | AA39: =IF(M39=0,0,L39/M39) -> 0.09045431343 | AB39: 31307.42049
A40: 2020-04-02T17:00:00 | B40: 1 | C40: Piemonte | D40: 3341 | E40: 453 | F40: 3794 | G40: 5005 | H40: 8799 | I40: 329 | J40: 558 | K40: 571 | L40: 983 | M40: 10353 | N40: 32100 | O40: 9301 | P40: =IF(M40>O39*2,"x2",O39) -> 9301 | Q40: =IF(P40="x2",M40,"") ->  | S40: =IF(H40-H39=0,"",H40-H39) -> 329 | T40: =IF(J40-J39=0,"",J40-J39) -> 64 | U40: =IF(K40-K39=0,"",K40-K39) -> 132 | V40: =IF(L40-L39=0,"",L40-L39) -> 97 | W40: =IF(M40-M39=0,"",M40-M39) -> 558 | X40: =IF(N40-N39=0,"",N40-N39) -> 2040 | Y40: =IF(M40=0,0,H40/M40) -> 0.8498985801 | Z40: =IF(M40=0,0,K40/M40) -> 0.05515309572 | AA40: =IF(M40=0,0,L40/M40) -> 0.09494832416 | AB40: 34734.98233
A41: =A40+1 -> 2020-04-03T17:00:00 | P41: Media x2 | Q41: =COUNT(M3:M40)/COUNT(Q3:Q40) -> 4.75
A42: =A41+1 -> 2020-04-04T17:00:00
A43: =A42+1 -> 2020-04-05T17:00:00
E44: =E40/$M40 -> 0.04375543321 | H44: =H40/$M40 -> 0.8498985801 | K44: =K40/$M40 -> 0.05515309572 | L44: =L40/$M40 -> 0.09494832416 | N44: =N40/$M40 -> 3.100550565
A48: Data | B48: Codice | C48: Regione | D48: Ricoverati | E48: Terap. Intens. | F48: Ospedalizzati | G48: Quarantena | H48: Positivi | I48: + Positivi | J48: Nuovi | K48: Guariti | L48: Deceduti | M48: Totale | N48: Tamponi | Q48: x 2 | S48: + Positivi | T48: + Nuovi | U48: + Guariti | V48: + Deceduti | W48: + Totali | X48: + Tamponi | Y48: % Positivi | Z48: % Guariti | AA48: % Deceduti | AB48: P. Stimati
A49: 2020-02-24T18:00:00 | B49: 2 | C49: Valle d'Aosta | D49: 0 | E49: 0 | F49: 0 | G49: 0 | H49: 0 | J49: 0 | K49: 0 | L49: 0 | M49: 0 | N49: 7 | O49: =M49 -> 0 | Q49: =M49 -> 0 | Y49: =IF(M49=0,0,H49/M49) -> 0 | Z49: =IF(M49=0,0,K49/M49) -> 0 | AA49: =IF(M49=0,0,L49/M49) -> 0 | AB49: =L49*100/B$1011 -> 0
A50: 2020-02-25T18:00:00 | B50: 2 | C50: Valle d'Aosta | D50: 0 | E50: 0 | F50: 0 | G50: 0 | H50: 0 | J50: 0 | K50: 0 | L50: 0 | M50: 0 | N50: 7 | O50: =IF(P50="x2",M50,O49) -> 0 | P50: =IF(M50>O49*2,"x2",O49) -> 0 | Q50: =IF(P50="x2",M50,"") ->  | S50: =IF(H50-H49=0,"",H50-H49) ->  | T50: =IF(J50-J49=0,"",J50-J49) ->  | U50: =IF(K50-K49=0,"",K50-K49) ->  | V50: =IF(L50-L49=0,"",L50-L49) ->  | W50: =IF(M50-M49=0,"",M50-M49) ->  | X50: =IF(N50-N49=0,"",N50-N49) ->  | Y50: =IF(M50=0,0,H50/M50) -> 0 | Z50: =IF(M50=0,0,K50/M50) -> 0 | AA50: =IF(M50=0,0,L50/M50) -> 0 | AB50: 0
A51: 2020-02-26T18:00:00 | B51: 2 | C51: Valle d'Aosta | D51: 0 | E51: 0 | F51: 0 | G51: 0 | H51: 0 | J51: 0 | K51: 0 | L51: 0 | M51: 0 | N51: 7 | O51: 0 | P51: 0 | Y51: 0 | Z51: 0 | AA51: 0 | AB51: 0
A52: 2020-02-27T18:00:00 | B52: 2 | C52: Valle d'Aosta | D52: 0 | E52: 0 | F52: 0 | G52: 0 | H52: 0 | J52: 0 | K52: 0 | L52: 0 | M52: 0 | N52: 9 | O52: 0 | P52: 0 | X52: 2 | Y52: 0 | Z52: 0 | AA52: 0 | AB52: 0
A53: 2020-02-28T18:00:00 | B53: 2 | C53: Valle d'Aosta | D53: 0 | E53: 0 | F53: 0 | G53: 0 | H53: 0 | J53: 0 | K53: 0 | L53: 0 | M53: 0 | N53: 9 | O53: 0 | P53: 0 | Y53: 0 | Z53: 0 | AA53: 0 | AB53: 0
A54: 2020-02-29T17:00:00 | B54: 2 | C54: Valle d'Aosta | D54: 0 | E54: 0 | F54: 0 | G54: 0 | H54: 0 | J54: 0 | K54: 0 | L54: 0 | M54: 0 | N54: 9 | O54: 0 | P54: 0 | Y54: 0 | Z54: 0 | AA54: 0 | AB54: 0
A55: 2020-03-01T17:00:00 | B55: 2 | C55: Valle d'Aosta | D55: 0 | E55: 0 | F55: 0 | G55: 0 | H55: 0 | J55: 0 | K55: 0 | L55: 0 | M55: 0 | N55: 10 | O55: 0 | P55: 0 | X55: 1 | Y55: 0 | Z55: 0 | AA55: 0 | AB55: 0
A56: 2020-03-02T18:00:00 | B56: 2 | C56: Valle d'Aosta | D56: 0 | E56: 0 | F56: 0 | G56: 0 | H56: 0 | J56: 0 | K56: 0 | L56: 0 | M56: 0 | N56: 11 | O56: 0 | P56: 0 | X56: 1 | Y56: 0 | Z56: 0 | AA56: 0 | AB56: 0
A57: 2020-03-03T18:00:00 | B57: 2 | C57: Valle d'Aosta | D57: 0 | E57: 0 | F57: 0 | G57: 0 | H57: 0 | J57: 0 | K57: 0 | L57: 0 | M57: 0 | N57: 12 | O57: 0 | P57: 0 | X57: 1 | Y57: 0 | Z57: 0 | AA57: 0 | AB57: 0
A58: 2020-03-04T17:00:00 | B58: 2 | C58: Valle d'Aosta | D58: 0 | E58: 0 | F58: 0 | G58: 0 | H58: 0 | J58: 0 | K58: 0 | L58: 0 | M58: 0 | N58: 15 | O58: 0 | P58: 0 | X58: 3 | Y58: 0 | Z58: 0 | AA58: 0 | AB58: 0
A59: 2020-03-05T17:00:00 | B59: 2 | C59: Valle d'Aosta | D59: 0 | E59: 0 | F59: 0 | G59: 2 | H59: 2 | J59: 2 | K59: 0 | L59: 0 | M59: 2 | N59: 21 | O59: 2 | P59: x2 | Q59: 2 | S59: 2 | T59: 2 | W59: 2 | X59: 6 | Y59: 1 | Z59: 0 | AA59: 0 | AB59: 0
A60: 2020-03-06T17:00:00 | B60: 2 | C60: Valle d'Aosta | D60: 0 | E60: 0 | F60: 0 | G60: 7 | H60: 7 | J60: 5 | K60: 0 | L60: 0 | M60: 7 | N60: 28 | O60: 7 | P60: x2 | Q60: 7 | S60: 5 | T60: 3 | W60: 5 | X60: 7 | Y60: 1 | Z60: 0 | AA60: 0 | AB60: 0
A61: 2020-03-07T18:00:00 | B61: 2 | C61: Valle d'Aosta | D61: 1 | E61: 0 | F61: 1 | G61: 7 | H61: 8 | J61: 1 | K61: 0 | L61: 0 | M61: 8 | N61: 32 | O61: 7 | P61: 7 | S61: 1 | T61: -4 | W61: 1 | X61: 4 | Y61: 1 | Z61: 0 | AA61: 0 | AB61: 0
A62: 2020-03-08T18:00:00 | B62: 2 | C62: Valle d'Aosta | D62: 1 | E62: 0 | F62: 1 | G62: 8 | H62: 9 | J62: 1 | K62: 0 | L62: 0 | M62: 9 | N62: 41 | O62: 7 | P62: 7 | S62: 1 | W62: 1 | X62: 9 | Y62: 1 | Z62: 0 | AA62: 0 | AB62: 0
A63: 2020-03-09T18:00:00 | B63: 2 | C63: Valle d'Aosta | D63: 4 | E63: 0 | F63: 4 | G63: 11 | H63: 15 | J63: 6 | K63: 0 | L63: 0 | M63: 15 | N63: 67 | O63: 15 | P63: x2 | Q63: 15 | S63: 6 | T63: 5 | W63: 6 | X63: 26 | Y63: 1 | Z63: 0 | AA63: 0 | AB63: 0
A64: 2020-03-10T18:00:00 | B64: 2 | C64: Valle d'Aosta | D64: 2 | E64: 0 | F64: 2 | G64: 15 | H64: 17 | J64: 2 | K64: 0 | L64: 0 | M64: 17 | N64: 89 | O64: 15 | P64: 15 | S64: 2 | T64: -4 | W64: 2 | X64: 22 | Y64: 1 | Z64: 0 | AA64: 0 | AB64: 0
A65: 2020-03-11T17:00:00 | B65: 2 | C65: Valle d'Aosta | D65: 2 | E65: 0 | F65: 2 | G65: 17 | H65: 19 | J65: 2 | K65: 0 | L65: 1 | M65: 20 | N65: 99 | O65: 15 | P65: 15 | S65: 2 | V65: 1 | W65: 3 | X65: 10 | Y65: 0.95 | Z65: 0 | AA65: 0.05 | AB65: 35.33568905
A66: 2020-03-12T17:00:00 | B66: 2 | C66: Valle d'Aosta | D66: 7 | E66: 0 | F66: 7 | G66: 19 | H66: 26 | J66: 7 | K66: 0 | L66: 1 | M66: 27 | N66: 118 | O66: 15 | P66: 15 | S66: 7 | T66: 5 | W66: 7 | X66: 19 | Y66: 0.962962963 | Z66: 0 | AA66: 0.03703703704 | AB66: 35.33568905
A67: 2020-03-13T17:00:00 | B67: 2 | C67: Valle d'Aosta | D67: 6 | E67: 0 | F67: 6 | G67: 21 | H67: 27 | J67: 1 | K67: 0 | L67: 1 | M67: 28 | N67: 189 | O67: 15 | P67: 15 | S67: 1 | T67: -6 | W67: 1 | X67: 71 | Y67: 0.9642857143 | Z67: 0 | AA67: 0.03571428571 | AB67: 35.33568905
A68: 2020-03-14T17:00:00 | B68: 2 | C68: Valle d'Aosta | D68: 12 | E68: 0 | F68: 12 | G68: 29 | H68: 41 | J68: 14 | K68: 0 | L68: 1 | M68: 42 | N68: 231 | O68: 42 | P68: x2 | Q68: 42 | S68: 14 | T68: 13 | W68: 14 | X68: 42 | Y68: 0.9761904762 | Z68: 0 | AA68: 0.02380952381 | AB68: 35.33568905
A69: 2020-03-15T17:00:00 | B69: 2 | C69: Valle d'Aosta | D69: 10 | E69: 3 | F69: 13 | G69: 43 | H69: 56 | J69: 15 | K69: 0 | L69: 1 | M69: 57 | N69: 230 | O69: 42 | P69: 42 | S69: 15 | T69: 1 | W69: 15 | X69: -1 | Y69: 0.9824561404 | Z69: 0 | AA69: 0.01754385965 | AB69: 35.33568905
A70: 2020-03-16T17:00:00 | B70: 2 | C70: Valle d'Aosta | D70: 28 | E70: 5 | F70: 33 | G70: 70 | H70: 103 | J70: 47 | K70: 0 | L70: 2 | M70: 105 | N70: 287 | O70: 105 | P70: x2 | Q70: 105 | S70: 47 | T70: 32 | V70: 1 | W70: 48 | X70: 57 | Y70: 0.980952381 | Z70: 0 | AA70: 0.01904761905 | AB70: 70.67137809
A71: 2020-03-17T17:00:00 | B71: 2 | C71: Valle d'Aosta | D71: 35 | E71: 6 | F71: 41 | G71: 93 | H71: 134 | J71: 31 | K71: 0 | L71: 2 | M71: 136 | N71: 398 | O71: 105 | P71: 105 | S71: 31 | T71: -16 | W71: 31 | X71: 111 | Y71: 0.9852941176 | Z71: 0 | AA71: 0.01470588235 | AB71: 70.67137809
A72: 2020-03-18T17:00:00 | B72: 2 | C72: Valle d'Aosta | D72: 41 | E72: 3 | F72: 44 | G72: 118 | H72: 162 | J72: 28 | K72: 0 | L72: 3 | M72: 165 | N72: 486 | O72: 105 | P72: 105 | S72: 28 | T72: -3 | V72: 1 | W72: 29 | X72: 88 | Y72: 0.9818181818 | Z72: 0 | AA72: 0.01818181818 | AB72: 106.0070671
A73: 2020-03-19T17:00:00 | B73: 2 | C73: Valle d'Aosta | D73: 47 | E73: 9 | F73: 56 | G73: 153 | H73: 209 | J73: 47 | K73: 0 | L73: 6 | M73: 215 | N73: 608 | O73: 215 | P73: x2 | Q73: 215 | S73: 47 | T73: 19 | V73: 3 | W73: 50 | X73: 122 | Y73: 0.9720930233 | Z73: 0 | AA73: 0.02790697674 | AB73: 212.0141343
A74: 2020-03-20T17:00:00 | B74: 2 | C74: Valle d'Aosta | D74: 54 | E74: 9 | F74: 63 | G74: 194 | H74: 257 | J74: 48 | K74: 0 | L74: 7 | M74: 264 | N74: 814 | O74: 215 | P74: 215 | S74: 48 | T74: 1 | V74: 1 | W74: 49 | X74: =IF(N74-N73=0,"",N74-N73) -> 206 | Y74: 0.9734848485 | Z74: 0 | AA74: 0.02651515152 | AB74: 247.3498233
A75: 2020-03-21T17:00:00 | B75: 2 | C75: Valle d'Aosta | D75: 62 | E75: 15 | F75: 77 | G75: 227 | H75: 304 | J75: 47 | K75: 1 | L75: 8 | M75: 313 | N75: 884 | O75: 215 | P75: 215 | S75: 47 | T75: -1 | U75: 1 | V75: 1 | W75: =IF(M75-M74=0,"",M75-M74) -> 49 | X75: 70 | Y75: 0.9712460064 | Z75: 0.003194888179 | AA75: 0.02555910543 | AB75: 282.6855124
A76: 2020-03-22T17:00:00 | B76: 2 | C76: Valle d'Aosta | D76: 63 | E76: 21 | F76: 84 | G76: 270 | H76: 354 | J76: 50 | K76: 1 | L76: 9 | M76: 364 | N76: 950 | O76: 215 | P76: 215 | S76: 50 | T76: 3 | V76: 1 | W76: 51 | X76: 66 | Y76: 0.9725274725 | Z76: 0.002747252747 | AA76: 0.02472527473 | AB76: 318.0212014
A77: 2020-03-23T17:00:00 | B77: 2 | C77: Valle d'Aosta | D77: 69 | E77: 20 | F77: 89 | G77: 290 | H77: 379 | J77: 25 | K77: 2 | L77: 12 | M77: 393 | N77: 1098 | O77: 215 | P77: 215 | S77: 25 | T77: -25 | U77: 1 | V77: 3 | W77: 29 | X77: 148 | Y77: 0.9643765903 | Z77: 0.005089058524 | AA77: 0.03053435115 | AB77: 424.0282686
A78: 2020-03-24T17:00:00 | B78: 2 | C78: Valle d'Aosta | D78: 71 | E78: 20 | F78: 91 | G78: 288 | H78: 379 | J78: 0 | K78: 2 | L78: 19 | M78: 400 | N78: 1180 | O78: 215 | P78: 215 | T78: -25 | V78: 7 | W78: 7 | X78: 82 | Y78: 0.9475 | Z78: 0.005 | AA78: 0.0475 | AB78: 671.3780919
A79: 2020-03-25T17:00:00 | B79: 2 | C79: Valle d'Aosta | D79: 70 | E79: 25 | F79: 95 | G79: 280 | H79: 375 | J79: -4 | K79: 2 | L79: 24 | M79: 401 | N79: 1200 | O79: 215 | P79: 215 | S79: -4 | T79: -4 | V79: 5 | W79: 1 | X79: 20 | Y79: 0.9351620948 | Z79: 0.004987531172 | AA79: 0.05985037406 | AB79: 848.0565371
A80: 2020-03-26T17:00:00 | B80: 2 | C80: Valle d'Aosta | D80: 73 | E80: 24 | F80: 97 | G80: 281 | H80: 378 | J80: 3 | K80: 2 | L80: 28 | M80: 408 | N80: 1203 | O80: 215 | P80: 215 | S80: 3 | T80: 7 | V80: 4 | W80: 7 | X80: =IF(N80-N79=0,"",N80-N79) -> 3 | Y80: 0.9264705882 | Z80: 0.004901960784 | AA80: 0.06862745098 | AB80: 989.3992933
A81: 2020-03-27T17:00:00 | B81: 2 | C81: Valle d'Aosta | D81: 91 | E81: 24 | F81: 115 | G81: 298 | H81: 413 | I81: 35 | J81: 44 | K81: 2 | L81: 37 | M81: 452 | N81: 1252 | O81: =IF(P81="x2",M81,O80) -> 452 | P81: =IF(M81>O80*2,"x2",O80) -> x2 | Q81: =IF(P81="x2",M81,"") -> 452 | S81: =IF(H81-H80=0,"",H81-H80) -> 35 | T81: =IF(J81-J80=0,"",J81-J80) -> 41 | V81: 9 | W81: 44 | X81: 49 | Y81: 0.9137168142 | Z81: 0.004424778761 | AA81: 0.08185840708 | AB81: 1307.420495
A82: 2020-03-28T17:00:00 | B82: 2 | C82: Valle d'Aosta | D82: 90 | E82: 26 | F82: 116 | G82: 352 | H82: 468 | I82: 55 | J82: 59 | K82: 2 | L82: 41 | M82: 511 | N82: 1380 | O82: 452 | P82: 452 | S82: 55 | T82: 15 | V82: 4 | W82: 59 | X82: 128 | Y82: 0.915851272 | Z82: 0.003913894325 | AA82: 0.08023483366 | AB82: 1448.763251
A83: 2020-03-29T17:00:00 | B83: 2 | C83: Valle d'Aosta | D83: 90 | E83: 26 | F83: 116 | G83: 423 | H83: 539 | I83: 71 | J83: 73 | K83: 2 | L83: 43 | M83: 584 | N83: 1480 | O83: 452 | P83: 452 | S83: 71 | T83: 14 | V83: 2 | W83: 73 | X83: 100 | Y83: 0.9229452055 | Z83: 0.003424657534 | AA83: 0.07363013699 | AB83: 1519.434629
A84: 2020-03-30T17:00:00 | B84: 2 | C84: Valle d'Aosta | D84: 92 | E84: 26 | F84: 118 | G84: 400 | H84: 518 | I84: -21 | J84: 0 | K84: 16 | L84: 50 | M84: 584 | N84: 1536 | O84: 452 | P84: 452 | S84: -21 | T84: -73 | U84: 14 | V84: 7 | X84: 56 | Y84: 0.8869863014 | Z84: 0.02739726027 | AA84: 0.08561643836 | AB84: 1766.784452
A85: 2020-03-31T17:00:00 | B85: 2 | C85: Valle d'Aosta | D85: 91 | E85: 26 | F85: 117 | G85: 435 | H85: 552 | I85: 34 | J85: 44 | K85: 20 | L85: 56 | M85: 628 | N85: 1582 | O85: 452 | P85: 452 | S85: 34 | T85: 44 | U85: 4 | V85: 6 | W85: 44 | X85: 46 | Y85: 0.8789808917 | Z85: 0.03184713376 | AA85: 0.08917197452 | AB85: 1978.798587
A86: 2020-04-01T17:00:00 | B86: 2 | C86: Valle d'Aosta | D86: 85 | E86: 27 | F86: 112 | G86: 428 | H86: 540 | I86: -12 | J86: 3 | K86: 32 | L86: 59 | M86: 631 | N86: 1717 | O86: 452 | P86: 452 | S86: -12 | T86: -41 | U86: 12 | V86: 3 | W86: 3 | X86: =IF(N86-N85=0,"",N86-N85) -> 135 | Y86: =IF(M86=0,0,H86/M86) -> 0.8557844691 | Z86: =IF(M86=0,0,K86/M86) -> 0.05071315372 | AA86: =IF(M86=0,0,L86/M86) -> 0.09350237718 | AB86: 2084.805654
A87: 2020-04-02T17:00:00 | B87: 2 | C87: Valle d'Aosta | D87: 85 | E87: 25 | F87: 110 | G87: 446 | H87: 556 | I87: 16 | J87: 37 | K87: 49 | L87: 63 | M87: 668 | N87: 1934 | O87: =IF(P87="x2",M87,O86) -> 452 | P87: =IF(M87>O86*2,"x2",O86) -> 452 | Q87: =IF(P87="x2",M87,"") ->  | S87: =IF(H87-H86=0,"",H87-H86) -> 16 | T87: =IF(J87-J86=0,"",J87-J86) -> 34 | U87: =IF(K87-K86=0,"",K87-K86) -> 17 | V87: =IF(L87-L86=0,"",L87-L86) -> 4 | W87: =IF(M87-M86=0,"",M87-M86) -> 37 | X87: =IF(N87-N86=0,"",N87-N86) -> 217 | Y87: =IF(M87=0,0,H87/M87) -> 0.8323353293 | Z87: =IF(M87=0,0,K87/M87) -> 0.07335329341 | AA87: =IF(M87=0,0,L87/M87) -> 0.09431137725 | AB87: 2226.14841
A88: =A87+1 -> 2020-04-03T17:00:00 | P88: Media x2 | Q88: =COUNT(M50:M87)/COUNT(Q50:Q87) -> 5.428571429
A89: =A88+1 -> 2020-04-04T17:00:00
A90: =A89+1 -> 2020-04-05T17:00:00
E91: =E87/$M87 -> 0.0374251497 | H91: =H87/$M87 -> 0.8323353293 | K91: =K87/$M87 -> 0.07335329341 | L91: =L87/$M87 -> 0.09431137725 | N91: =N87/$M87 -> 2.895209581
A95: Data | B95: Codice | C95: Regione | D95: Ricoverati | E95: Terap. Intens. | F95: Ospedalizzati | G95: Quarantena | H95: Positivi | I95: + Positivi | J95: Nuovi | K95: Guariti | L95: Deceduti | M95: Totale | N95: Tamponi | Q95: x 2 | S95: + Positivi | T95: + Nuovi | U95: + Guariti | V95: + Deceduti | W95: + Totali | X95: + Tamponi | Y95: % Positivi | Z95: % Guariti | AA95: % Deceduti | AB95: P. Stimati
A96: 2020-02-24T18:00:00 | B96: 3 | C96: Lombardia | D96: 76 | E96: 19 | F96: 95 | G96: 71 | H96: 166 | J96: 166 | K96: 0 | L96: 6 | M96: 172 | N96: 1463 | O96: =M96 -> 172 | Q96: =M96 -> 172 | Y96: =IF(M96=0,0,H96/M96) -> 0.9651162791 | Z96: =IF(M96=0,0,K96/M96) -> 0 | AA96: =IF(M96=0,0,L96/M96) -> 0.03488372093 | AB96: =L96*100/B$1011 -> 212.0141343
A97: 2020-02-25T18:00:00 | B97: 3 | C97: Lombardia | D97: 79 | E97: 25 | F97: 104 | G97: 127 | H97: 231 | J97: 65 | K97: 0 | L97: 9 | M97: 240 | N97: 3700 | O97: =IF(P97="x2",M97,O96) -> 172 | P97: =IF(M97>O96*2,"x2",O96) -> 172 | Q97: =IF(P97="x2",M97,"") ->  | S97: =IF(H97-H96=0,"",H97-H96) -> 65 | T97: =IF(J97-J96=0,"",J97-J96) -> -101 | U97: =IF(K97-K96=0,"",K97-K96) ->  | V97: =IF(L97-L96=0,"",L97-L96) -> 3 | W97: =IF(M97-M96=0,"",M97-M96) -> 68 | X97: =IF(N97-N96=0,"",N97-N96) -> 2237 | Y97: 0.9625 | Z97: 0 | AA97: 0.0375 | AB97: 318.0212014
A98: 2020-02-26T18:00:00 | B98: 3 | C98: Lombardia | D98: 79 | E98: 25 | F98: 104 | G98: 145 | H98: 249 | J98: 18 | K98: 0 | L98: 9 | M98: 258 | N98: 3208 | O98: 172 | P98: 172 | S98: 18 | T98: -47 | W98: 18 | X98: -492 | Y98: 0.9651162791 | Z98: 0 | AA98: 0.03488372093 | AB98: 318.0212014
A99: 2020-02-27T18:00:00 | B99: 3 | C99: Lombardia | D99: 172 | E99: 41 | F99: 213 | G99: 136 | H99: 349 | J99: 100 | K99: 40 | L99: 14 | M99: 403 | N99: 3320 | O99: 403 | P99: x2 | Q99: 403 | S99: 100 | T99: 82 | U99: 40 | V99: 5 | W99: 145 | X99: 112 | Y99: 0.8660049628 | Z99: 0.09925558313 | AA99: 0.03473945409 | AB99: 494.6996466
A100: 2020-02-28T18:00:00 | B100: 3 | C100: Lombardia | D100: 235 | E100: 47 | F100: 282 | G100: 192 | H100: 474 | J100: 125 | K100: 40 | L100: 17 | M100: 531 | N100: 4835 | O100: 403 | P100: 403 | S100: 125 | T100: 25 | V100: 3 | W100: 128 | X100: 1515 | Y100: 0.8926553672 | Z100: 0.07532956685 | AA100: 0.03201506591 | AB100: 600.7067138
A101: 2020-02-29T17:00:00 | B101: 3 | C101: Lombardia | D101: 256 | E101: 80 | F101: 336 | G101: 216 | H101: 552 | J101: 78 | K101: 40 | L101: 23 | M101: 615 | N101: 5723 | O101: 403 | P101: 403 | S101: 78 | T101: -47 | V101: 6 | W101: 84 | X101: 888 | Y101: 0.8975609756 | Z101: 0.06504065041 | AA101: 0.03739837398 | AB101: 812.7208481
A102: 2020-03-01T17:00:00 | B102: 3 | C102: Lombardia | D102: 406 | E102: 106 | F102: 512 | G102: 375 | H102: 887 | J102: 335 | K102: 73 | L102: 24 | M102: 984 | N102: 6879 | O102: 984 | P102: x2 | Q102: 984 | S102: 335 | T102: 257 | U102: 33 | V102: 1 | W102: 369 | X102: 1156 | Y102: 0.9014227642 | Z102: 0.07418699187 | AA102: 0.0243902439 | AB102: 848.0565371
A103: 2020-03-02T18:00:00 | B103: 3 | C103: Lombardia | D103: 478 | E103: 127 | F103: 605 | G103: 472 | H103: 1077 | J103: 190 | K103: 139 | L103: 38 | M103: 1254 | N103: 7925 | O103: 984 | P103: 984 | S103: 190 | T103: -145 | U103: 66 | V103: 14 | W103: 270 | X103: 1046 | Y103: 0.8588516746 | Z103: 0.1108452951 | AA103: 0.0303030303 | AB103: 1342.756184
A104: 2020-03-03T18:00:00 | B104: 3 | C104: Lombardia | D104: 698 | E104: 167 | F104: 865 | G104: 461 | H104: 1326 | J104: 249 | K104: 139 | L104: 55 | M104: 1520 | N104: 9577 | O104: 984 | P104: 984 | S104: 249 | T104: 59 | V104: 17 | W104: 266 | X104: 1652 | Y104: 0.8723684211 | Z104: 0.09144736842 | AA104: 0.03618421053 | AB104: 1943.462898
A105: 2020-03-04T17:00:00 | B105: 3 | C105: Lombardia | D105: 877 | E105: 209 | F105: 1086 | G105: 411 | H105: 1497 | J105: 171 | K105: 250 | L105: 73 | M105: 1820 | N105: 12138 | O105: 984 | P105: 984 | S105: 171 | T105: -78 | U105: 111 | V105: 18 | W105: 300 | X105: 2561 | Y105: 0.8225274725 | Z105: 0.1373626374 | AA105: 0.04010989011 | AB105: 2579.5053
A106: 2020-03-05T17:00:00 | B106: 3 | C106: Lombardia | D106: 1169 | E106: 244 | F106: 1413 | G106: 364 | H106: 1777 | J106: 280 | K106: 376 | L106: 98 | M106: 2251 | N106: 12354 | O106: 2251 | P106: x2 | Q106: 2251 | S106: 280 | T106: 109 | U106: 126 | V106: 25 | W106: 431 | X106: 216 | Y106: 0.7894269214 | Z106: 0.1670368725 | AA106: 0.04353620613 | AB106: 3462.897527
A107: 2020-03-06T17:00:00 | B107: 3 | C107: Lombardia | D107: 1622 | E107: 309 | F107: 1931 | G107: 77 | H107: 2008 | J107: 231 | K107: 469 | L107: 135 | M107: 2612 | N107: 13556 | O107: 2251 | P107: 2251 | S107: 231 | T107: -49 | U107: 93 | V107: 37 | W107: 361 | X107: 1202 | Y107: 0.7687595712 | Z107: 0.1795558959 | AA107: 0.05168453292 | AB107: 4770.318021
A108: 2020-03-07T18:00:00 | B108: 3 | C108: Lombardia | D108: 1661 | E108: 359 | F108: 2020 | G108: 722 | H108: 2742 | J108: 734 | K108: 524 | L108: 154 | M108: 3420 | N108: 15778 | O108: 2251 | P108: 2251 | S108: 734 | T108: 503 | U108: 55 | V108: 19 | W108: 808 | X108: 2222 | Y108: 0.801754386 | Z108: 0.1532163743 | AA108: 0.04502923977 | AB108: 5441.696113
A109: 2020-03-08T18:00:00 | B109: 3 | C109: Lombardia | D109: 2217 | E109: 399 | F109: 2616 | G109: 756 | H109: 3372 | J109: 630 | K109: 550 | L109: 267 | M109: 4189 | N109: 18534 | O109: 2251 | P109: 2251 | S109: 630 | T109: -104 | U109: 26 | V109: 113 | W109: 769 | X109: 2756 | Y109: 0.8049653855 | Z109: 0.1312962521 | AA109: 0.06373836238 | AB109: 9434.628975
A110: 2020-03-09T18:00:00 | B110: 3 | C110: Lombardia | D110: 2802 | E110: 440 | F110: 3242 | G110: 1248 | H110: 4490 | J110: 1118 | K110: 646 | L110: 333 | M110: 5469 | N110: 20135 | O110: 5469 | P110: x2 | Q110: 5469 | S110: 1118 | T110: 488 | U110: 96 | V110: 66 | W110: 1280 | X110: 1601 | Y110: 0.8209910404 | Z110: 0.1181203145 | AA110: 0.06088864509 | AB110: 11766.78445
A111: 2020-03-10T18:00:00 | B111: 3 | C111: Lombardia | D111: 3319 | E111: 466 | F111: 3785 | G111: 642 | H111: 4427 | J111: -63 | K111: 896 | L111: 468 | M111: 5791 | N111: 21479 | O111: 5469 | P111: 5469 | S111: -63 | T111: -1181 | U111: 250 | V111: 135 | W111: 322 | X111: 1344 | Y111: 0.7644620964 | Z111: 0.1547228458 | AA111: 0.08081505785 | AB111: 16537.10247
A112: 2020-03-11T17:00:00 | B112: 3 | C112: Lombardia | D112: 3852 | E112: 560 | F112: 4412 | G112: 1351 | H112: 5763 | J112: 1336 | K112: 900 | L112: 617 | M112: 7280 | N112: 25629 | O112: 5469 | P112: 5469 | S112: 1336 | T112: 1399 | U112: 4 | V112: 149 | W112: 1489 | X112: 4150 | Y112: 0.7916208791 | Z112: 0.1236263736 | AA112: 0.08475274725 | AB112: 21802.12014
A113: 2020-03-12T17:00:00 | B113: 3 | C113: Lombardia | D113: 4247 | E113: 605 | F113: 4852 | G113: 2044 | H113: 6896 | J113: 1133 | K113: 1085 | L113: 744 | M113: 8725 | N113: 29534 | O113: 5469 | P113: 5469 | S113: 1133 | T113: -203 | U113: 185 | V113: 127 | W113: 1445 | X113: 3905 | Y113: 0.7903724928 | Z113: 0.1243553009 | AA113: 0.0852722063 | AB113: 26289.75265
A114: 2020-03-13T17:00:00 | B114: 3 | C114: Lombardia | D114: 4435 | E114: 650 | F114: 5085 | G114: 2647 | H114: 7732 | J114: 836 | K114: 1198 | L114: 890 | M114: 9820 | N114: 32700 | O114: 5469 | P114: 5469 | S114: 836 | T114: -297 | U114: 113 | V114: 146 | W114: 1095 | X114: 3166 | Y114: 0.7873727088 | Z114: 0.1219959267 | AA114: 0.09063136456 | AB114: 31448.76325
A115: 2020-03-14T17:00:00 | B115: 3 | C115: Lombardia | D115: 4898 | E115: 732 | F115: 5630 | G115: 3429 | H115: 9059 | J115: 1327 | K115: 1660 | L115: 966 | M115: 11685 | N115: 37138 | O115: 11685 | P115: x2 | Q115: 11685 | S115: 1327 | T115: 491 | U115: 462 | V115: 76 | W115: 1865 | X115: 4438 | Y115: 0.7752674369 | Z115: 0.1420624733 | AA115: 0.08267008986 | AB115: 34134.27562
A116: 2020-03-15T17:00:00 | B116: 3 | C116: Lombardia | D116: 5500 | E116: 767 | F116: 6267 | G116: 3776 | H116: 10043 | J116: 984 | K116: 2011 | L116: 1218 | M116: 13272 | N116: 40369 | O116: 11685 | P116: 11685 | S116: 984 | T116: -343 | U116: 351 | V116: 252 | W116: 1587 | X116: 3231 | Y116: 0.7567058469 | Z116: 0.1515220012 | AA116: 0.0917721519 | AB116: 43038.86926
A117: 2020-03-16T17:00:00 | B117: 3 | C117: Lombardia | D117: 6171 | E117: 823 | F117: 6994 | G117: 3867 | H117: 10861 | J117: 818 | K117: 2368 | L117: 1420 | M117: 14649 | N117: 43565 | O117: 11685 | P117: 11685 | S117: 818 | T117: -166 | U117: 357 | V117: 202 | W117: 1377 | X117: 3196 | Y117: 0.7414157963 | Z117: 0.1616492593 | AA117: 0.09693494436 | AB117: 50176.67845
A118: 2020-03-17T17:00:00 | B118: 3 | C118: Lombardia | D118: 6953 | E118: 879 | F118: 7832 | G118: 4263 | H118: 12095 | J118: 1234 | K118: 2485 | L118: 1640 | M118: 16220 | N118: 46449 | O118: 11685 | P118: 11685 | S118: 1234 | T118: 416 | U118: 117 | V118: 220 | W118: 1571 | X118: 2884 | Y118: 0.7456843403 | Z118: 0.1532059186 | AA118: 0.1011097411 | AB118: 57950.53004
A119: 2020-03-18T17:00:00 | B119: 3 | C119: Lombardia | D119: 7285 | E119: 924 | F119: 8209 | G119: 4057 | H119: 12266 | J119: 171 | K119: 3488 | L119: 1959 | M119: 17713 | N119: 48983 | O119: 11685 | P119: 11685 | S119: 171 | T119: -1063 | U119: 1003 | V119: 319 | W119: 1493 | X119: 2534 | Y119: 0.6924857449 | Z119: 0.1969175182 | AA119: 0.1105967369 | AB119: 69222.61484
A120: 2020-03-19T17:00:00 | B120: 3 | C120: Lombardia | D120: 7387 | E120: 1006 | F120: 8393 | G120: 5545 | H120: 13938 | J120: 1672 | K120: 3778 | L120: 2168 | M120: 19884 | N120: 52244 | O120: 11685 | P120: 11685 | S120: 1672 | T120: 1501 | U120: 290 | V120: 209 | W120: 2171 | X120: 3261 | Y120: 0.7009656005 | Z120: 0.1900020117 | AA120: 0.1090323878 | AB120: 76607.77385
A121: 2020-03-20T17:00:00 | B121: 3 | C121: Lombardia | D121: 7735 | E121: 1050 | F121: 8785 | G121: 6635 | H121: 15420 | J121: 1482 | K121: 4295 | L121: 2549 | M121: 22264 | N121: 57174 | O121: 11685 | P121: 11685 | S121: 1482 | T121: -190 | U121: 517 | V121: 381 | W121: 2380 | X121: =IF(N121-N120=0,"",N121-N120) -> 4930 | Y121: 0.6925979159 | Z121: 0.1929123248 | AA121: 0.1144897593 | AB121: 90070.67138
A122: 2020-03-21T17:00:00 | B122: 3 | C122: Lombardia | D122: 8258 | E122: 1093 | F122: 9351 | G122: 8019 | H122: 17370 | J122: 1950 | K122: 5050 | L122: 3095 | M122: 25515 | N122: 66730 | O122: 25515 | P122: x2 | Q122: 25515 | S122: 1950 | T122: 468 | U122: 755 | V122: 546 | W122: =IF(M122-M121=0,"",M122-M121) -> 3251 | X122: 9556 | Y122: 0.6807760141 | Z122: 0.1979227905 | AA122: 0.1213011954 | AB122: 109363.9576
A123: 2020-03-22T17:00:00 | B123: 3 | C123: Lombardia | D123: 9439 | E123: 1142 | F123: 10581 | G123: 7304 | H123: 17885 | J123: 515 | K123: 5865 | L123: 3456 | M123: 27206 | N123: 70598 | O123: 25515 | P123: 25515 | S123: 515 | T123: -1435 | U123: 815 | V123: 361 | W123: 1691 | X123: 3868 | Y123: 0.6573917518 | Z123: 0.2155774462 | AA123: 0.127030802 | AB123: 122120.1413
A124: 2020-03-23T17:00:00 | B124: 3 | C124: Lombardia | D124: 9266 | E124: 1183 | F124: 10449 | G124: 8461 | H124: 18910 | J124: 1025 | K124: 6075 | L124: 3776 | M124: 28761 | N124: 73242 | O124: 25515 | P124: 25515 | S124: 1025 | T124: 510 | U124: 210 | V124: 320 | W124: 1555 | X124: 2644 | Y124: 0.65748757 | Z124: 0.2112235319 | AA124: 0.1312888982 | AB124: 133427.5618
A125: 2020-03-24T17:00:00 | B125: 3 | C125: Lombardia | D125: 9711 | E125: 1194 | F125: 10905 | G125: 8963 | H125: 19868 | J125: 958 | K125: 6657 | L125: 4178 | M125: 30703 | N125: 76695 | O125: 25515 | P125: 25515 | S125: 958 | T125: -67 | U125: 582 | V125: 402 | W125: 1942 | X125: 3453 | Y125: 0.647102889 | Z125: 0.2168192033 | AA125: 0.1360779077 | AB125: 147632.5088
A126: 2020-03-25T17:00:00 | B126: 3 | C126: Lombardia | D126: 10026 | E126: 1236 | F126: 11262 | G126: 9329 | H126: 20591 | J126: 723 | K126: 7281 | L126: 4474 | M126: 32346 | N126: 81666 | O126: 25515 | P126: 25515 | S126: 723 | T126: -235 | U126: 624 | V126: 296 | W126: 1643 | X126: 4971 | Y126: 0.6365856675 | Z126: 0.2250973845 | AA126: 0.138316948 | AB126: 158091.8728
A127: 2020-03-26T17:00:00 | B127: 3 | C127: Lombardia | D127: 10681 | E127: 1263 | F127: 11944 | G127: 10245 | H127: 22189 | J127: 1598 | K127: 7839 | L127: 4861 | M127: 34889 | N127: 87713 | O127: 25515 | P127: 25515 | S127: 1598 | T127: 875 | U127: 558 | V127: 387 | W127: 2543 | X127: =IF(N127-N126=0,"",N127-N126) -> 6047 | Y127: 0.6359884204 | Z127: 0.2246839978 | AA127: 0.1393275818 | AB127: 171766.7845
A128: 2020-03-27T17:00:00 | B128: 3 | C128: Lombardia | D128: 11137 | E128: 1292 | F128: 12429 | G128: 11466 | H128: 23895 | I128: 1706 | J128: 2409 | K128: 8001 | L128: 5402 | M128: 37298 | N128: 95860 | O128: =IF(P128="x2",M128,O127) -> 25515 | P128: =IF(M128>O127*2,"x2",O127) -> 25515 | Q128: =IF(P128="x2",M128,"") ->  | S128: =IF(H128-H127=0,"",H128-H127) -> 1706 | T128: =IF(J128-J127=0,"",J128-J127) -> 811 | U128: 162 | V128: 541 | W128: 2409 | X128: 8147 | Y128: 0.6406509732 | Z128: 0.2145155236 | AA128: 0.1448335031 | AB128: 190883.3922
A129: 2020-03-28T17:00:00 | B129: 3 | C129: Lombardia | D129: 11152 | E129: 1319 | F129: 12471 | G129: 12038 | H129: 24509 | I129: 614 | J129: 2117 | K129: 8962 | L129: 5944 | M129: 39415 | N129: 102503 | O129: 25515 | P129: 25515 | S129: 614 | T129: -292 | U129: 961 | V129: 542 | W129: 2117 | X129: 6643 | Y129: 0.6218191044 | Z129: 0.2273753647 | AA129: 0.1508055309 | AB129: 210035.3357
A130: 2020-03-29T17:00:00 | B130: 3 | C130: Lombardia | D130: 11613 | E130: 1328 | F130: 12941 | G130: 12451 | H130: 25392 | I130: 883 | J130: 1592 | K130: 9255 | L130: 6360 | M130: 41007 | N130: 107398 | O130: 25515 | P130: 25515 | S130: 883 | T130: -525 | U130: 293 | V130: 416 | W130: 1592 | X130: 4895 | Y130: 0.6192113542 | Z130: 0.2256931743 | AA130: 0.1550954715 | AB130: 224734.9823
A131: 2020-03-30T17:00:00 | B131: 3 | C131: Lombardia | D131: 11815 | E131: 1330 | F131: 13145 | G131: 11861 | H131: 25006 | I131: -386 | J131: 1154 | K131: 10337 | L131: 6818 | M131: 42161 | N131: 111057 | O131: 25515 | P131: 25515 | S131: -386 | T131: -438 | U131: 1082 | V131: 458 | W131: 1154 | X131: 3659 | Y131: 0.5931073741 | Z131: 0.245179194 | AA131: 0.1617134318 | AB131: 240918.7279
A132: 2020-03-31T17:00:00 | B132: 3 | C132: Lombardia | D132: 11883 | E132: 1324 | F132: 13207 | G132: 11917 | H132: 25124 | I132: 118 | J132: 1047 | K132: 10885 | L132: 7199 | M132: 43208 | N132: 114640 | O132: 25515 | P132: 25515 | S132: 118 | T132: -107 | U132: 548 | V132: 381 | W132: 1047 | X132: 3583 | Y132: 0.5814663951 | Z132: 0.2519209406 | AA132: 0.1666126643 | AB132: 254381.6254
A133: 2020-04-01T17:00:00 | B133: 3 | C133: Lombardia | D133: 11927 | E133: 1342 | F133: 13269 | G133: 12496 | H133: 25765 | I133: 641 | J133: 1565 | K133: 11415 | L133: 7593 | M133: 44773 | N133: 121449 | O133: 25515 | P133: 25515 | S133: 641 | T133: 518 | U133: 530 | V133: 394 | W133: 1565 | X133: =IF(N133-N132=0,"",N133-N132) -> 6809 | Y133: =IF(M133=0,0,H133/M133) -> 0.5754584236 | Z133: =IF(M133=0,0,K133/M133) -> 0.2549527617 | AA133: =IF(M133=0,0,L133/M133) -> 0.1695888147 | AB133: 268303.8869
A134: 2020-04-02T17:00:00 | B134: 3 | C134: Lombardia | D134: 11762 | E134: 1351 | F134: 13113 | G134: 12763 | H134: 25876 | I134: 111 | J134: 1292 | K134: 12229 | L134: 7960 | M134: 46065 | N134: 128286 | O134: =IF(P134="x2",M134,O133) -> 25515 | P134: =IF(M134>O133*2,"x2",O133) -> 25515 | Q134: =IF(P134="x2",M134,"") ->  | S134: =IF(H134-H133=0,"",H134-H133) -> 111 | T134: =IF(J134-J133=0,"",J134-J133) -> -273 | U134: =IF(K134-K133=0,"",K134-K133) -> 814 | V134: =IF(L134-L133=0,"",L134-L133) -> 367 | W134: =IF(M134-M133=0,"",M134-M133) -> 1292 | X134: =IF(N134-N133=0,"",N134-N133) -> 6837 | Y134: =IF(M134=0,0,H134/M134) -> 0.5617279931 | Z134: =IF(M134=0,0,K134/M134) -> 0.2654727016 | AA134: =IF(M134=0,0,L134/M134) -> 0.1727993053 | AB134: 281272.0848
A135: =A134+1 -> 2020-04-03T17:00:00 | P135: Media x2 | Q135: =COUNT(M97:M134)/COUNT(Q97:Q134) -> 6.333333333
A136: =A135+1 -> 2020-04-04T17:00:00
A137: =A136+1 -> 2020-04-05T17:00:00
E138: =E134/$M134 -> 0.0293281233 | H138: =H134/$M134 -> 0.5617279931 | K138: =K134/$M134 -> 0.2654727016 | L138: =L134/$M134 -> 0.1727993053 | N138: =N134/$M134 -> 2.784890915
A142: Data | B142: Codice | C142: Regione | D142: Ricoverati | E142: Terap. Intens. | F142: Ospedalizzati | G142: Quarantena | H142: Positivi | I142: + Positivi | J142: Nuovi | K142: Guariti | L142: Deceduti | M142: Totale | N142: Tamponi | Q142: x 2 | S142: + Positivi | T142: + Nuovi | U142: + Guariti | V142: + Deceduti | W142: + Totali | X142: + Tamponi | Y142: % Positivi | Z142: % Guariti | AA142: % Deceduti | AB142: P. Stimati
A143: 2020-02-24T18:00:00 | B143: 4 | C143: P.A. Bolzano | D143: 0 | E143: 0 | F143: 0 | G143: 0 | H143: 0 | J143: 0 | K143: 0 | L143: 0 | M143: 0 | N143: 1 | O143: =M143 -> 0 | Q143: =M143 -> 0 | Y143: =IF(M143=0,0,H143/M143) -> 0 | Z143: =IF(M143=0,0,K143/M143) -> 0 | AA143: =IF(M143=0,0,L143/M143) -> 0 | AB143: =L143*100/B$1011 -> 0
A144: 2020-02-25T18:00:00 | B144: 4 | C144: P.A. Bolzano | D144: 1 | E144: 0 | F144: 1 | G144: 0 | H144: 1 | J144: 1 | K144: 0 | L144: 0 | M144: 1 | N144: 1 | O144: =IF(P144="x2",M144,O143) -> 1 | P144: =IF(M144>O143*2,"x2",O143) -> x2 | Q144: =IF(P144="x2",M144,"") -> 1 | S144: =IF(H144-H143=0,"",H144-H143) -> 1 | T144: =IF(J144-J143=0,"",J144-J143) -> 1 | U144: =IF(K144-K143=0,"",K144-K143) ->  | V144: =IF(L144-L143=0,"",L144-L143) ->  | W144: =IF(M144-M143=0,"",M144-M143) -> 1 | X144: =IF(N144-N143=0,"",N144-N143) ->  | Y144: 1 | Z144: 0 | AA144: 0 | AB144: 0
A145: 2020-02-26T18:00:00 | B145: 4 | C145: P.A. Bolzano | D145: 1 | E145: 0 | F145: 1 | G145: 0 | H145: 1 | J145: 0 | K145: 0 | L145: 0 | M145: 1 | N145: 1 | O145: 1 | P145: 1 | T145: -1 | Y145: 1 | Z145: 0 | AA145: 0 | AB145: 0
A146: 2020-02-27T18:00:00 | B146: 4 | C146: P.A. Bolzano | D146: 1 | E146: 0 | F146: 1 | G146: 0 | H146: 1 | J146: 0 | K146: 0 | L146: 0 | M146: 1 | N146: 2 | O146: 1 | P146: 1 | X146: 1 | Y146: 1 | Z146: 0 | AA146: 0 | AB146: 0
A147: 2020-02-28T18:00:00 | B147: 4 | C147: P.A. Bolzano | D147: 1 | E147: 0 | F147: 1 | G147: 0 | H147: 1 | J147: 0 | K147: 0 | L147: 0 | M147: 1 | N147: 2 | O147: 1 | P147: 1 | Y147: 1 | Z147: 0 | AA147: 0 | AB147: 0
A148: 2020-02-29T17:00:00 | B148: 4 | C148: P.A. Bolzano | D148: 1 | E148: 0 | F148: 1 | G148: 0 | H148: 1 | J148: 0 | K148: 0 | L148: 0 | M148: 1 | N148: 16 | O148: 1 | P148: 1 | X148: 14 | Y148: 1 | Z148: 0 | AA148: 0 | AB148: 0
A149: 2020-03-01T17:00:00 | B149: 4 | C149: P.A. Bolzano | D149: 1 | E149: 0 | F149: 1 | G149: 0 | H149: 1 | J149: 0 | K149: 0 | L149: 0 | M149: 1 | N149: 20 | O149: 1 | P149: 1 | X149: 4 | Y149: 1 | Z149: 0 | AA149: 0 | AB149: 0
A150: 2020-03-02T18:00:00 | B150: 4 | C150: P.A. Bolzano | D150: 1 | E150: 0 | F150: 1 | G150: 0 | H150: 1 | J150: 0 | K150: 0 | L150: 0 | M150: 1 | N150: 20 | O150: 1 | P150: 1 | Y150: 1 | Z150: 0 | AA150: 0 | AB150: 0
A151: 2020-03-03T18:00:00 | B151: 4 | C151: P.A. Bolzano | D151: 1 | E151: 0 | F151: 1 | G151: 0 | H151: 1 | J151: 0 | K151: 0 | L151: 0 | M151: 1 | N151: 20 | O151: 1 | P151: 1 | Y151: 1 | Z151: 0 | AA151: 0 | AB151: 0
A152: 2020-03-04T17:00:00 | B152: 4 | C152: P.A. Bolzano | D152: 1 | E152: 0 | F152: 1 | G152: 0 | H152: 1 | J152: 0 | K152: 0 | L152: 0 | M152: 1 | N152: 20 | O152: 1 | P152: 1 | Y152: 1 | Z152: 0 | AA152: 0 | AB152: 0
A153: 2020-03-05T17:00:00 | B153: 4 | C153: P.A. Bolzano | D153: 1 | E153: 0 | F153: 1 | G153: 0 | H153: 1 | J153: 0 | K153: 0 | L153: 0 | M153: 1 | N153: 20 | O153: 1 | P153: 1 | Y153: 1 | Z153: 0 | AA153: 0 | AB153: 0
A154: 2020-03-06T17:00:00 | B154: 4 | C154: P.A. Bolzano | D154: 4 | E154: 0 | F154: 4 | G154: 0 | H154: 4 | J154: 3 | K154: 0 | L154: 0 | M154: 4 | N154: 36 | O154: 4 | P154: x2 | Q154: 4 | S154: 3 | T154: 3 | W154: 3 | X154: 16 | Y154: 1 | Z154: 0 | AA154: 0 | AB154: 0
A155: 2020-03-07T18:00:00 | B155: 4 | C155: P.A. Bolzano | D155: 8 | E155: 0 | F155: 8 | G155: 1 | H155: 9 | J155: 5 | K155: 0 | L155: 0 | M155: 9 | N155: 36 | O155: 9 | P155: x2 | Q155: 9 | S155: 5 | T155: 2 | W155: 5 | Y155: 1 | Z155: 0 | AA155: 0 | AB155: 0
A156: 2020-03-08T18:00:00 | B156: 4 | C156: P.A. Bolzano | D156: 8 | E156: 0 | F156: 8 | G156: 1 | H156: 9 | J156: 0 | K156: 0 | L156: 0 | M156: 9 | N156: 36 | O156: 9 | P156: 9 | T156: -5 | Y156: 1 | Z156: 0 | AA156: 0 | AB156: 0
A157: 2020-03-09T18:00:00 | B157: 4 | C157: P.A. Bolzano | D157: 8 | E157: 0 | F157: 8 | G157: 1 | H157: 9 | J157: 0 | K157: 0 | L157: 0 | M157: 9 | N157: 36 | O157: 9 | P157: 9 | Y157: 1 | Z157: 0 | AA157: 0 | AB157: 0
A158: 2020-03-10T18:00:00 | B158: 4 | C158: P.A. Bolzano | D158: 17 | E158: 1 | F158: 18 | G158: 20 | H158: 38 | J158: 29 | K158: 0 | L158: 0 | M158: 38 | N158: 36 | O158: 38 | P158: x2 | Q158: 38 | S158: 29 | T158: 29 | W158: 29 | Y158: 1 | Z158: 0 | AA158: 0 | AB158: 0
A159: 2020-03-11T17:00:00 | B159: 4 | C159: P.A. Bolzano | D159: 8 | E159: 4 | F159: 12 | G159: 63 | H159: 75 | J159: 37 | K159: 0 | L159: 0 | M159: 75 | N159: 75 | O159: 38 | P159: 38 | S159: 37 | T159: 8 | W159: 37 | X159: 39 | Y159: 1 | Z159: 0 | AA159: 0 | AB159: 0
A160: 2020-03-12T17:00:00 | B160: 4 | C160: P.A. Bolzano | D160: 21 | E160: 4 | F160: 25 | G160: 78 | H160: 103 | J160: 28 | K160: 0 | L160: 1 | M160: 104 | N160: 607 | O160: 104 | P160: x2 | Q160: 104 | S160: 28 | T160: -9 | V160: 1 | W160: 29 | X160: 532 | Y160: 0.9903846154 | Z160: 0 | AA160: 0.009615384615 | AB160: 35.33568905
A161: 2020-03-13T17:00:00 | B161: 4 | C161: P.A. Bolzano | D161: 20 | E161: 5 | F161: 25 | G161: 98 | H161: 123 | J161: 20 | K161: 0 | L161: 2 | M161: 125 | N161: 811 | O161: 104 | P161: 104 | S161: 20 | T161: -8 | V161: 1 | W161: 21 | X161: 204 | Y161: 0.984 | Z161: 0 | AA161: 0.016 | AB161: 70.67137809
A162: 2020-03-14T17:00:00 | B162: 4 | C162: P.A. Bolzano | D162: 26 | E162: 7 | F162: 33 | G162: 137 | H162: 170 | J162: 47 | K162: 0 | L162: 3 | M162: 173 | N162: 1135 | O162: 104 | P162: 104 | S162: 47 | T162: 27 | V162: 1 | W162: 48 | X162: 324 | Y162: 0.9826589595 | Z162: 0 | AA162: 0.01734104046 | AB162: 106.0070671
A163: 2020-03-15T17:00:00 | B163: 4 | C163: P.A. Bolzano | D163: 50 | E163: 4 | F163: 54 | G163: 145 | H163: 199 | J163: 29 | K163: 0 | L163: 5 | M163: 204 | N163: 1497 | O163: 104 | P163: 104 | S163: 29 | T163: -18 | V163: 2 | W163: 31 | X163: 362 | Y163: 0.9754901961 | Z163: 0 | AA163: 0.02450980392 | AB163: 176.6784452
A164: 2020-03-16T17:00:00 | B164: 4 | C164: P.A. Bolzano | D164: 53 | E164: 11 | F164: 64 | G164: 171 | H164: 235 | J164: 36 | K164: 0 | L164: 6 | M164: 241 | N164: 1740 | O164: 241 | P164: x2 | Q164: 241 | S164: 36 | T164: 7 | V164: 1 | W164: 37 | X164: 243 | Y164: 0.9751037344 | Z164: 0 | AA164: 0.02489626556 | AB164: 212.0141343
A165: 2020-03-17T17:00:00 | B165: 4 | C165: P.A. Bolzano | D165: 71 | E165: 11 | F165: 82 | G165: 200 | H165: 282 | J165: 47 | K165: 1 | L165: 8 | M165: 291 | N165: 2149 | O165: 241 | P165: 241 | S165: 47 | T165: 11 | U165: 1 | V165: 2 | W165: 50 | X165: 409 | Y165: 0.9690721649 | Z165: 0.003436426117 | AA165: 0.02749140893 | AB165: 282.6855124
A166: 2020-03-18T17:00:00 | B166: 4 | C166: P.A. Bolzano | D166: 79 | E166: 18 | F166: 97 | G166: 269 | H166: 366 | J166: 84 | K166: 1 | L166: 9 | M166: 376 | N166: 2844 | O166: 241 | P166: 241 | S166: 84 | T166: 37 | V166: 1 | W166: 85 | X166: 695 | Y166: 0.9734042553 | Z166: 0.002659574468 | AA166: 0.02393617021 | AB166: 318.0212014
A167: 2020-03-19T17:00:00 | B167: 4 | C167: P.A. Bolzano | D167: 87 | E167: 18 | F167: 105 | G167: 316 | H167: 421 | J167: 55 | K167: 1 | L167: 14 | M167: 436 | N167: 3568 | O167: 241 | P167: 241 | S167: 55 | T167: -29 | V167: 5 | W167: 60 | X167: 724 | Y167: 0.9655963303 | Z167: 0.002293577982 | AA167: 0.03211009174 | AB167: 494.6996466
A168: 2020-03-20T17:00:00 | B168: 4 | C168: P.A. Bolzano | D168: 99 | E168: 24 | F168: 123 | G168: 407 | H168: 530 | J168: 109 | K168: 1 | L168: 17 | M168: 548 | N168: 4433 | O168: 548 | P168: x2 | Q168: 548 | S168: 109 | T168: 54 | V168: 3 | W168: 112 | X168: =IF(N168-N167=0,"",N168-N167) -> 865 | Y168: 0.9671532847 | Z168: 0.001824817518 | AA168: 0.03102189781 | AB168: 600.7067138
A169: 2020-03-21T17:00:00 | B169: 4 | C169: P.A. Bolzano | D169: 127 | E169: 30 | F169: 157 | G169: 443 | H169: 600 | J169: 70 | K169: 1 | L169: 20 | M169: 621 | N169: 5179 | O169: 548 | P169: 548 | S169: 70 | T169: -39 | V169: 3 | W169: =IF(M169-M168=0,"",M169-M168) -> 73 | X169: 746 | Y169: 0.9661835749 | Z169: 0.001610305958 | AA169: 0.03220611916 | AB169: 706.7137809
A170: 2020-03-22T17:00:00 | B170: 4 | C170: P.A. Bolzano | D170: 146 | E170: 32 | F170: 178 | G170: 470 | H170: 648 | J170: 48 | K170: 7 | L170: 23 | M170: 678 | N170: 5718 | O170: 548 | P170: 548 | S170: 48 | T170: -22 | U170: 6 | V170: 3 | W170: 57 | X170: 539 | Y170: 0.9557522124 | Z170: 0.01032448378 | AA170: 0.03392330383 | AB170: 812.7208481
A171: 2020-03-23T17:00:00 | B171: 4 | C171: P.A. Bolzano | D171: 145 | E171: 33 | F171: 178 | G171: 510 | H171: 688 | J171: 40 | K171: 7 | L171: 29 | M171: 724 | N171: 6084 | O171: 548 | P171: 548 | S171: 40 | T171: -8 | V171: 6 | W171: 46 | X171: 366 | Y171: 0.9502762431 | Z171: 0.009668508287 | AA171: 0.04005524862 | AB171: 1024.734982
A172: 2020-03-24T17:00:00 | B172: 4 | C172: P.A. Bolzano | D172: 166 | E172: 38 | F172: 204 | G172: 495 | H172: 699 | J172: 11 | K172: 44 | L172: 38 | M172: 781 | N172: 6509 | O172: 548 | P172: 548 | S172: 11 | T172: -29 | U172: 37 | V172: 9 | W172: 57 | X172: 425 | Y172: 0.895006402 | Z172: 0.05633802817 | AA172: 0.04865556978 | AB172: 1342.756184
A173: 2020-03-25T17:00:00 | B173: 4 | C173: P.A. Bolzano | D173: 190 | E173: 40 | F173: 230 | G173: 518 | H173: 748 | J173: 49 | K173: 67 | L173: 43 | M173: 858 | N173: 6649 | O173: 548 | P173: 548 | S173: 49 | T173: 38 | U173: 23 | V173: 5 | W173: 77 | X173: 140 | Y173: 0.8717948718 | Z173: 0.07808857809 | AA173: 0.05011655012 | AB173: 1519.434629
A174: 2020-03-26T17:00:00 | B174: 4 | C174: P.A. Bolzano | D174: 223 | E174: 43 | F174: 266 | G174: 525 | H174: 791 | J174: 43 | K174: 67 | L174: 48 | M174: 906 | N174: 7744 | O174: 548 | P174: 548 | S174: 43 | T174: -6 | V174: 5 | W174: 48 | X174: =IF(N174-N173=0,"",N174-N173) -> 1095 | Y174: 0.8730684327 | Z174: 0.07395143488 | AA174: 0.05298013245 | AB174: 1696.113074
A175: 2020-03-27T17:00:00 | B175: 4 | C175: P.A. Bolzano | D175: 249 | E175: 45 | F175: 294 | G175: 539 | H175: 833 | I175: 42 | J175: 97 | K175: 110 | L175: 60 | M175: 1003 | N175: 8520 | O175: =IF(P175="x2",M175,O174) -> 548 | P175: =IF(M175>O174*2,"x2",O174) -> 548 | Q175: =IF(P175="x2",M175,"") ->  | S175: =IF(H175-H174=0,"",H175-H174) -> 42 | T175: =IF(J175-J174=0,"",J175-J174) -> 54 | U175: 43 | V175: 12 | W175: 97 | X175: 776 | Y175: 0.8305084746 | Z175: 0.109670987 | AA175: 0.05982053838 | AB175: 2120.141343
A176: 2020-03-28T17:00:00 | B176: 4 | C176: P.A. Bolzano | D176: 225 | E176: 51 | F176: 276 | G176: 653 | H176: 929 | I176: 96 | J176: 106 | K176: 116 | L176: 64 | M176: 1109 | N176: 9168 | O176: 1109 | P176: x2 | Q176: 1109 | S176: 96 | T176: 9 | U176: 6 | V176: 4 | W176: 106 | X176: 648 | Y176: 0.8376916141 | Z176: 0.1045987376 | AA176: 0.05770964833 | AB176: 2261.484099
A177: 2020-03-29T17:00:00 | B177: 4 | C177: P.A. Bolzano | D177: 234 | E177: 56 | F177: 290 | G177: 744 | H177: 1034 | I177: 105 | J177: 105 | K177: 116 | L177: 64 | M177: 1214 | N177: 10137 | O177: 1109 | P177: 1109 | S177: 105 | T177: -1 | W177: 105 | X177: 969 | Y177: 0.8517298188 | Z177: 0.09555189456 | AA177: 0.05271828666 | AB177: 2261.484099
A178: 2020-03-30T17:00:00 | B178: 4 | C178: P.A. Bolzano | D178: 231 | E178: 62 | F178: 293 | G178: 805 | H178: 1098 | I178: 64 | J178: 111 | K178: 153 | L178: 74 | M178: 1325 | N178: 10640 | O178: 1109 | P178: 1109 | S178: 64 | T178: 6 | U178: 37 | V178: 10 | W178: 111 | X178: 503 | Y178: 0.8286792453 | Z178: 0.1154716981 | AA178: 0.0558490566 | AB178: 2614.840989
A179: 2020-03-31T17:00:00 | B179: 4 | C179: P.A. Bolzano | D179: 249 | E179: 62 | F179: 311 | G179: 831 | H179: 1142 | I179: 44 | J179: 46 | K179: 153 | L179: 76 | M179: 1371 | N179: 11275 | O179: 1109 | P179: 1109 | S179: 44 | T179: -65 | V179: 2 | W179: 46 | X179: 635 | Y179: 0.832968636 | Z179: 0.1115973742 | AA179: 0.05543398979 | AB179: 2685.512367
A180: 2020-04-01T17:00:00 | B180: 4 | C180: P.A. Bolzano | D180: 269 | E180: 57 | F180: 326 | G180: 786 | H180: 1112 | I180: -30 | J180: 47 | K180: 190 | L180: 116 | M180: 1418 | N180: 11951 | O180: 1109 | P180: 1109 | S180: -30 | T180: 1 | U180: 37 | V180: 40 | W180: 47 | X180: =IF(N180-N179=0,"",N180-N179) -> 676 | Y180: =IF(M180=0,0,H180/M180) -> 0.784203103 | Z180: =IF(M180=0,0,K180/M180) -> 0.1339915374 | AA180: =IF(M180=0,0,L180/M180) -> 0.08180535966 | AB180: 4098.939929
A181: 2020-04-02T17:00:00 | B181: 4 | C181: P.A. Bolzano | D181: 279 | E181: 60 | F181: 339 | G181: 821 | H181: 1160 | I181: 48 | J181: 61 | K181: 190 | L181: 129 | M181: 1479 | N181: 12677 | O181: =IF(P181="x2",M181,O180) -> 1109 | P181: =IF(M181>O180*2,"x2",O180) -> 1109 | Q181: =IF(P181="x2",M181,"") ->  | S181: =IF(H181-H180=0,"",H181-H180) -> 48 | T181: =IF(J181-J180=0,"",J181-J180) -> 14 | U181: =IF(K181-K180=0,"",K181-K180) ->  | V181: =IF(L181-L180=0,"",L181-L180) -> 13 | W181: =IF(M181-M180=0,"",M181-M180) -> 61 | X181: =IF(N181-N180=0,"",N181-N180) -> 726 | Y181: =IF(M181=0,0,H181/M181) -> 0.7843137255 | Z181: =IF(M181=0,0,K181/M181) -> 0.1284651792 | AA181: =IF(M181=0,0,L181/M181) -> 0.08722109533 | AB181: 4558.303887
A182: =A181+1 -> 2020-04-03T17:00:00 | P182: Media x2 | Q182: =COUNT(M144:M181)/COUNT(Q144:Q181) -> 4.75
A183: =A182+1 -> 2020-04-04T17:00:00
A184: =A183+1 -> 2020-04-05T17:00:00
E185: =E181/$M181 -> 0.04056795132 | H185: =H181/$M181 -> 0.7843137255 | K185: =K181/$M181 -> 0.1284651792 | L185: =L181/$M181 -> 0.08722109533 | N185: =N181/$M181 -> 8.571331981
A189: Data | B189: Codice | C189: Regione | D189: Ricoverati | E189: Terap. Intens. | F189: Ospedalizzati | G189: Quarantena | H189: Positivi | I189: + Positivi | J189: Nuovi | K189: Guariti | L189: Deceduti | M189: Totale | N189: Tamponi | Q189: x 2 | S189: + Positivi | T189: + Nuovi | U189: + Guariti | V189: + Deceduti | W189: + Totali | X189: + Tamponi | Y189: % Positivi | Z189: % Guariti | AA189: % Deceduti | AB189: P. Stimati
A190: 2020-02-24T18:00:00 | B190: 4 | C190: P.A. Trento | D190: 0 | E190: 0 | F190: 0 | G190: 0 | H190: 0 | J190: 0 | K190: 0 | L190: 0 | M190: 0 | N190: 3 | O190: =M190 -> 0 | Q190: =M190 -> 0 | Y190: =IF(M190=0,0,H190/M190) -> 0 | Z190: =IF(M190=0,0,K190/M190) -> 0 | AA190: =IF(M190=0,0,L190/M190) -> 0 | AB190: =L190*100/B$1011 -> 0
A191: 2020-02-25T18:00:00 | B191: 4 | C191: P.A. Trento | D191: 0 | E191: 0 | F191: 0 | G191: 0 | H191: 0 | J191: 0 | K191: 0 | L191: 0 | M191: 0 | N191: 3 | O191: =IF(P191="x2",M191,O190) -> 0 | P191: =IF(M191>O190*2,"x2",O190) -> 0 | Q191: =IF(P191="x2",M191,"") ->  | S191: =IF(H191-H190=0,"",H191-H190) ->  | T191: =IF(J191-J190=0,"",J191-J190) ->  | U191: =IF(K191-K190=0,"",K191-K190) ->  | V191: =IF(L191-L190=0,"",L191-L190) ->  | W191: =IF(M191-M190=0,"",M191-M190) ->  | X191: =IF(N191-N190=0,"",N191-N190) ->  | Y191: 0 | Z191: 0 | AA191: 0 | AB191: 0
A192: 2020-02-26T18:00:00 | B192: 4 | C192: P.A. Trento | D192: 0 | E192: 0 | F192: 0 | G192: 0 | H192: 0 | J192: 0 | K192: 0 | L192: 0 | M192: 0 | N192: 3 | O192: 0 | P192: 0 | Y192: 0 | Z192: 0 | AA192: 0 | AB192: 0
A193: 2020-02-27T18:00:00 | B193: 4 | C193: P.A. Trento | D193: 0 | E193: 0 | F193: 0 | G193: 0 | H193: 0 | J193: 0 | K193: 0 | L193: 0 | M193: 0 | N193: 32 | O193: 0 | P193: 0 | X193: 29 | Y193: 0 | Z193: 0 | AA193: 0 | AB193: 0
A194: 2020-02-28T18:00:00 | B194: 4 | C194: P.A. Trento | D194: 0 | E194: 0 | F194: 0 | G194: 0 | H194: 0 | J194: 0 | K194: 0 | L194: 0 | M194: 0 | N194: 32 | O194: 0 | P194: 0 | Y194: 0 | Z194: 0 | AA194: 0 | AB194: 0
A195: 2020-02-29T17:00:00 | B195: 4 | C195: P.A. Trento | D195: 0 | E195: 0 | F195: 0 | G195: 0 | H195: 0 | J195: 0 | K195: 0 | L195: 0 | M195: 0 | N195: 43 | O195: 0 | P195: 0 | X195: 11 | Y195: 0 | Z195: 0 | AA195: 0 | AB195: 0
A196: 2020-03-01T17:00:00 | B196: 4 | C196: P.A. Trento | D196: 0 | E196: 0 | F196: 0 | G196: 0 | H196: 0 | J196: 0 | K196: 0 | L196: 0 | M196: 0 | N196: 122 | O196: 0 | P196: 0 | X196: 79 | Y196: 0 | Z196: 0 | AA196: 0 | AB196: 0
A197: 2020-03-02T18:00:00 | B197: 4 | C197: P.A. Trento | D197: 0 | E197: 0 | F197: 0 | G197: 0 | H197: 0 | J197: 0 | K197: 0 | L197: 0 | M197: 0 | N197: 122 | O197: 0 | P197: 0 | Y197: 0 | Z197: 0 | AA197: 0 | AB197: 0
A198: 2020-03-03T18:00:00 | B198: 4 | C198: P.A. Trento | D198: 1 | E198: 0 | F198: 1 | G198: 3 | H198: 4 | J198: 4 | K198: 0 | L198: 0 | M198: 4 | N198: 122 | O198: 4 | P198: x2 | Q198: 4 | S198: 4 | T198: 4 | W198: 4 | Y198: 1 | Z198: 0 | AA198: 0 | AB198: 0
A199: 2020-03-04T17:00:00 | B199: 4 | C199: P.A. Trento | D199: 1 | E199: 0 | F199: 1 | G199: 4 | H199: 5 | J199: 1 | K199: 0 | L199: 0 | M199: 5 | N199: 122 | O199: 4 | P199: 4 | S199: 1 | T199: -3 | W199: 1 | Y199: 1 | Z199: 0 | AA199: 0 | AB199: 0
A200: 2020-03-05T17:00:00 | B200: 4 | C200: P.A. Trento | D200: 2 | E200: 0 | F200: 2 | G200: 5 | H200: 7 | J200: 2 | K200: 0 | L200: 0 | M200: 7 | N200: 122 | O200: 4 | P200: 4 | S200: 2 | T200: 1 | W200: 2 | Y200: 1 | Z200: 0 | AA200: 0 | AB200: 0
A201: 2020-03-06T17:00:00 | B201: 4 | C201: P.A. Trento | D201: 4 | E201: 0 | F201: 4 | G201: 6 | H201: 10 | J201: 3 | K201: 0 | L201: 0 | M201: 10 | N201: 122 | O201: 10 | P201: x2 | Q201: 10 | S201: 3 | T201: 1 | W201: 3 | Y201: 1 | Z201: 0 | AA201: 0 | AB201: 0
A202: 2020-03-07T18:00:00 | B202: 4 | C202: P.A. Trento | D202: 6 | E202: 1 | F202: 7 | G202: 7 | H202: 14 | J202: 4 | K202: 0 | L202: 0 | M202: 14 | N202: 194 | O202: 10 | P202: 10 | S202: 4 | T202: 1 | W202: 4 | X202: 72 | Y202: 1 | Z202: 0 | AA202: 0 | AB202: 0
A203: 2020-03-08T18:00:00 | B203: 4 | C203: P.A. Trento | D203: 7 | E203: 2 | F203: 9 | G203: 14 | H203: 23 | J203: 9 | K203: 0 | L203: 0 | M203: 23 | N203: 228 | O203: 23 | P203: x2 | Q203: 23 | S203: 9 | T203: 5 | W203: 9 | X203: 34 | Y203: 1 | Z203: 0 | AA203: 0 | AB203: 0
A204: 2020-03-09T18:00:00 | B204: 4 | C204: P.A. Trento | D204: 10 | E204: 2 | F204: 12 | G204: 21 | H204: 33 | J204: 10 | K204: 0 | L204: 0 | M204: 33 | N204: 267 | O204: 23 | P204: 23 | S204: 10 | T204: 1 | W204: 10 | X204: 39 | Y204: 1 | Z204: 0 | AA204: 0 | AB204: 0
A205: 2020-03-10T18:00:00 | B205: 4 | C205: P.A. Trento | D205: 19 | E205: 3 | F205: 22 | G205: 28 | H205: 50 | J205: 17 | K205: 2 | L205: 0 | M205: 52 | N205: 399 | O205: 52 | P205: x2 | Q205: 52 | S205: 17 | T205: 7 | U205: 2 | W205: 19 | X205: 132 | Y205: 0.9615384615 | Z205: 0.03846153846 | AA205: 0 | AB205: 0
A206: 2020-03-11T17:00:00 | B206: 4 | C206: P.A. Trento | D206: 28 | E206: 4 | F206: 32 | G206: 42 | H206: 74 | J206: 24 | K206: 3 | L206: 0 | M206: 77 | N206: 527 | O206: 52 | P206: 52 | S206: 24 | T206: 7 | U206: 1 | W206: 25 | X206: 128 | Y206: 0.961038961 | Z206: 0.03896103896 | AA206: 0 | AB206: 0
A207: 2020-03-12T17:00:00 | B207: 4 | C207: P.A. Trento | D207: 43 | E207: 5 | F207: 48 | G207: 54 | H207: 102 | J207: 28 | K207: 4 | L207: 1 | M207: 107 | N207: 593 | O207: 107 | P207: x2 | Q207: 107 | S207: 28 | T207: 4 | U207: 1 | V207: 1 | W207: 30 | X207: 66 | Y207: 0.953271028 | Z207: 0.03738317757 | AA207: 0.009345794393 | AB207: 35.33568905
A208: 2020-03-13T17:00:00 | B208: 4 | C208: P.A. Trento | D208: 58 | E208: 6 | F208: 64 | G208: 93 | H208: 157 | J208: 55 | K208: 4 | L208: 2 | M208: 163 | N208: 846 | O208: 107 | P208: 107 | S208: 55 | T208: 27 | V208: 1 | W208: 56 | X208: 253 | Y208: 0.963190184 | Z208: 0.0245398773 | AA208: 0.01226993865 | AB208: 70.67137809
A209: 2020-03-14T17:00:00 | B209: 4 | C209: P.A. Trento | D209: 68 | E209: 12 | F209: 80 | G209: 119 | H209: 199 | J209: 42 | K209: 5 | L209: 2 | M209: 206 | N209: 1006 | O209: 107 | P209: 107 | S209: 42 | T209: -13 | U209: 1 | W209: 43 | X209: 160 | Y209: 0.9660194175 | Z209: 0.02427184466 | AA209: 0.009708737864 | AB209: 70.67137809
A210: 2020-03-15T17:00:00 | B210: 4 | C210: P.A. Trento | D210: 73 | E210: 19 | F210: 92 | G210: 275 | H210: 367 | J210: 168 | K210: 5 | L210: 6 | M210: 378 | N210: 1006 | O210: 378 | P210: x2 | Q210: 378 | S210: 168 | T210: 126 | V210: 4 | W210: 172 | Y210: 0.9708994709 | Z210: 0.01322751323 | AA210: 0.01587301587 | AB210: 212.0141343
A211: 2020-03-16T17:00:00 | B211: 4 | C211: P.A. Trento | D211: 73 | E211: 19 | F211: 92 | G211: 275 | H211: 367 | J211: 0 | K211: 5 | L211: 6 | M211: 378 | N211: 1006 | O211: 378 | P211: 378 | T211: -168 | Y211: 0.9708994709 | Z211: 0.01322751323 | AA211: 0.01587301587 | AB211: 212.0141343
A212: 2020-03-17T17:00:00 | B212: 4 | C212: P.A. Trento | D212: 107 | E212: 22 | F212: 129 | G212: 239 | H212: 368 | J212: 1 | K212: 10 | L212: 7 | M212: 385 | N212: 1727 | O212: 378 | P212: 378 | S212: 1 | T212: 1 | U212: 5 | V212: 1 | W212: 7 | X212: 721 | Y212: 0.9558441558 | Z212: 0.02597402597 | AA212: 0.01818181818 | AB212: 247.3498233
... 791 more rows
